bitfinex/quotes_BTCUSD_20251209
["timestamp","ask_amount","ask_price","bid_price","bid_amount"]
[1765288817044,0.22091164,90534.0,90532.0,0.22091486]
[1765288817243,0.22291164,90534.0,90532.0,0.22091486]
[1765288817483,0.001,90533.0,90531.0,0.24944447]
[1765288817693,0.001,90533.0,90532.0,0.22091636]
[1765288817899,0.001,90533.0,90531.0,0.24944447]
[1765288818131,0.22091173,90534.0,90531.0,0.24944447]
[1765288818271,0.001,90534.0,90531.0,0.24944447]
[1765288818484,0.001,90534.0,90532.0,0.22091635]
[1765288818722,0.0110452,90537.0,90534.0,0.22090984]
[1765288818919,0.23195027,90537.0,90534.0,0.22090984]
[1765288819125,0.0110452,90537.0,90534.0,0.22090984]
[1765288819326,0.22113998,90538.0,90535.0,0.22090904]
[1765288819525,0.22113998,90538.0,90531.0,0.24944439]
[1765288819526,0.002,90534.0,90531.0,0.24944439]
[1765288819727,0.01304557,90534.0,90532.0,0.22091634]
[1765288819944,0.01304557,90534.0,90531.0,0.24944439]
[1765288820230,0.23195722,90534.0,90531.0,0.02852594]
[1765288820341,0.23195726,90534.0,90531.0,0.24944445]
[1765288820547,0.01104545,90535.0,90532.0,0.23196044]
[1765288820962,0.22091208,90534.0,90532.0,0.23196044]
[1765288821290,0.22091148,90534.0,90531.0,0.01748]
[1765288821502,0.22191148,90534.0,90531.0,0.01748]
[1765288821702,0.01404557,90534.0,90532.0,0.22091628]
[1765288822231,0.002,90534.0,90532.0,0.22091636]
[1765288822453,0.002,90534.0,90533.0,0.22091392]
[1765288822454,0.003,90534.0,90533.0,0.22091392]
[1765288822784,0.001,90534.0,90533.0,0.24289018]
[1765288823206,0.003,90534.0,90533.0,0.30702604]
[1765288823408,0.003,90534.0,90533.0,0.31145135]
[1765288823633,0.002,90534.0,90533.0,0.31145135]
[1765288823778,0.00023768,90538.0,90533.0,0.00442531]
[1765288823992,0.0110463,90528.0,90525.0,0.01748]
[1765288824194,0.220931,90526.0,90525.0,0.01748]
[1765288826520,0.23197378,90528.0,90525.0,0.01748]
[1765288826720,0.0110463,90528.0,90525.0,0.01748]
[1765288827017,0.04424589,90537.0,90528.0,0.22092478]
[1765288827243,0.2319644,90533.0,90530.0,0.22091968]
[1765288827507,0.2319644,90533.0,90529.0,0.23196765]
[1765288827671,0.2319644,90533.0,90531.0,0.22091843]
[1765288827862,0.2319644,90533.0,90530.0,0.01104606]
[1765288828067,0.23196554,90531.0,90527.0,0.01104642]
[1765288828427,0.23196554,90531.0,90528.0,0.22092587]
[1765288828680,0.23196318,90532.0,90529.0,0.22092291]
[1765288829058,0.23196318,90532.0,90529.0,0.23196909]
[1765288829788,0.23496318,90532.0,90529.0,0.23196909]
[1765288829984,0.22090917,90535.0,90530.0,0.01104606]
[1765288830150,0.003,90531.0,90530.0,0.2319673]
[1765288830552,0.003,90532.0,90531.0,0.2209188]
[1765288830949,0.005,90532.0,90531.0,0.2209188]
[1765288831362,0.003,90532.0,90531.0,0.2209188]
[1765288831801,0.005,90532.0,90531.0,0.2209188]
[1765288832163,0.002,90532.0,90531.0,0.2209188]
[1765288832900,0.00023768,90538.0,90537.0,0.22090416]
[1765288833085,0.00023768,90538.0,90537.0,0.23838416]
[1765288834136,0.00323768,90538.0,90537.0,0.23838416]
[1765288834609,0.00723768,90538.0,90537.0,0.23838416]
[1765288834813,0.00423768,90538.0,90537.0,0.23838416]
[1765288834975,0.00423768,90538.0,90537.0,0.26036042]
[1765288835566,0.00423768,90538.0,90537.0,0.32288341]
[1765288835769,0.00023768,90538.0,90537.0,0.32449628]
[1765288836079,0.00723768,90538.0,90537.0,0.32892152]
[1765288836838,0.00023768,90538.0,90537.0,0.32892152]
[1765288839131,0.00023768,90538.0,90537.0,0.38845929]
[1765288839912,0.00023768,90538.0,90537.0,0.32892152]
[1765288840262,0.00023768,90538.0,90537.0,0.39045081]
[1765288840459,0.00023768,90538.0,90537.0,0.62262152]
[1765288840672,0.00023768,90538.0,90537.0,0.62062152]
[1765288840838,0.00023768,90538.0,90537.0,0.62162152]
[1765288841232,0.00023768,90538.0,90537.0,0.62262152]
[1765288842056,0.00023768,90538.0,90537.0,0.62062152]
[1765288842526,0.00023768,90538.0,90537.0,0.62262152]
[1765288842743,0.00023768,90538.0,90537.0,0.61962152]
[1765288842899,0.00023768,90538.0,90537.0,0.62262152]
[1765288843618,0.00023768,90538.0,90537.0,0.62162152]
[1765288843822,0.00023768,90538.0,90537.0,0.62062152]
[1765288843998,0.00023768,90538.0,90537.0,0.62262152]
[1765288844197,0.00023768,90538.0,90537.0,0.62162152]
[1765288844624,0.00023768,90538.0,90537.0,0.62262152]
[1765288846064,0.00023768,90538.0,90537.0,0.62062152]
[1765288846269,0.00023768,90538.0,90537.0,0.62262152]
[1765288846681,0.00023768,90538.0,90537.0,0.62062152]
[1765288846809,0.00023768,90538.0,90537.0,0.62262152]
[1765288847251,0.00023768,90538.0,90537.0,0.61762152]
[1765288847835,0.00023768,90538.0,90537.0,0.69700521]
[1765288848057,0.00023768,90538.0,90537.0,0.61762152]
[1765288848373,0.0004,90540.0,90539.0,0.59609853]
[1765288848573,0.0004,90540.0,90539.0,0.5977114]
[1765288849881,0.0004,90540.0,90539.0,0.6017114]
[1765288850132,1e-08,90560.0,90559.0,2.07252117]
[1765288850334,0.0004,90620.0,90593.0,0.57399059]
[1765288850535,0.0004,90620.0,90619.0,0.30520351]
[1765288850679,0.00051579,90620.0,90619.0,0.61499638]
[1765288851079,0.03315549,90659.0,90629.0,0.58390108]
[1765288851325,0.0004,90660.0,90657.0,0.28313474]
[1765288851651,0.00020557,90658.0,90657.0,0.30061474]
[1765288851927,0.00020557,90658.0,90657.0,0.30222761]
[1765288852128,0.00020557,90658.0,90657.0,0.32420387]
[1765288853111,0.00520557,90658.0,90657.0,0.32420387]
[1765288855765,0.00520557,90658.0,90657.0,0.61490387]
[1765288855946,0.00020557,90658.0,90657.0,0.61490387]
[1765288856353,0.00420557,90658.0,90657.0,0.61490387]
[1765288856559,0.00020557,90658.0,90657.0,0.61490387]
[1765288857576,0.00620557,90658.0,90657.0,0.61490387]
[1765288858763,0.00020557,90658.0,90657.0,0.61490387]
[1765288858959,0.00320557,90658.0,90657.0,0.61490387]
[1765288859159,0.00020557,90658.0,90657.0,0.61490387]
[1765288859365,0.00020557,90658.0,90657.0,0.61590387]
[1765288859694,0.00120557,90658.0,90657.0,0.61590387]
[1765288859861,0.00020557,90658.0,90657.0,0.69906491]
[1765288860310,0.00120557,90658.0,90657.0,0.59742387]
[1765288860461,0.00020557,90658.0,90657.0,0.61490387]
[1765288861086,0.00020557,90658.0,90657.0,0.59742387]
[1765288861283,0.00376601,90658.0,90657.0,0.26168088]
[1765288861505,0.00376601,90658.0,90657.0,0.26268088]
[1765288861720,0.00376601,90658.0,90657.0,0.32520387]
[1765288862101,0.00376601,90658.0,90657.0,0.32420387]
[1765288862503,0.00476601,90658.0,90657.0,0.32520387]
[1765288862929,0.00376601,90658.0,90657.0,0.32420387]
[1765288863160,0.00676601,90658.0,90657.0,0.32420387]
[1765288863727,0.00376601,90658.0,90657.0,0.32420387]
[1765288865135,0.00376601,90658.0,90657.0,0.30672387]
[1765288865362,0.00376601,90658.0,90657.0,0.32420387]
[1765288865812,0.00576601,90658.0,90657.0,0.32420387]
[1765288867006,0.00376601,90658.0,90657.0,0.61490387]
[1765288867843,0.00376601,90658.0,90657.0,0.61590387]
[1765288868254,1e-08,90658.0,90657.0,0.61590387]
[1765288869241,1e-08,90658.0,90657.0,0.61490387]
[1765288869438,1e-08,90658.0,90657.0,0.61590387]
[1765288869758,1e-08,90658.0,90657.0,0.61990387]
[1765288870373,0.0004,90660.0,90659.0,0.59580613]
[1765288870374,1e-08,90660.0,90659.0,0.59580613]
[1765288870587,1e-08,90660.0,90659.0,0.597419]
[1765288871196,1e-08,90666.0,90665.0,0.59579154]
[1765288871410,0.0004,90710.0,90699.0,0.30500884]
[1765288871642,0.0004,90710.0,90699.0,0.32248884]
[1765288871643,0.00051554,90700.0,90699.0,0.32248884]
[1765288871847,0.00051554,90700.0,90699.0,0.32410171]
[1765288873157,0.00051554,90700.0,90699.0,0.61480171]
[1765288873499,0.00351554,90700.0,90699.0,0.59732171]
[1765288873705,0.00051554,90700.0,90699.0,0.61480171]
[1765288874155,1e-08,90700.0,90699.0,0.61480171]
[1765288874406,0.0004,90710.0,90709.0,0.59568453]
[1765288874610,0.0004,90710.0,90709.0,0.5972974]
[1765288874831,0.0004,90720.0,90719.0,0.51116098]
[1765288875039,0.0004,90720.0,90719.0,0.6147531]
[1765288875714,0.0004,90720.0,90719.0,0.60277502]
[1765288876202,0.0004,90720.0,90719.0,0.57629684]
[1765288876383,0.0004,90720.0,90719.0,0.6157531]
[1765288876796,0.0034,90720.0,90719.0,0.6157531]
[1765288876976,0.0004,90720.0,90719.0,0.6157531]
[1765288877380,0.0034,90720.0,90719.0,0.6157531]
[1765288877762,0.00499997,90720.0,90719.0,0.6157531]
[1765288878009,0.00499997,90720.0,90719.0,0.6147531]
[1765288878383,0.00499997,90720.0,90719.0,0.60277502]
[1765288878967,0.00199997,90720.0,90719.0,0.60377502]
[1765288879380,0.00399997,90720.0,90719.0,0.60377502]
[1765288879584,0.00199997,90720.0,90719.0,0.60377502]
[1765288880056,0.00399997,90720.0,90719.0,0.60377502]
[1765288880200,0.00199997,90720.0,90719.0,0.58629502]
[1765288880428,0.00199997,90720.0,90719.0,0.60377502]
[1765288880647,0.00399997,90720.0,90719.0,0.60377502]
[1765288880847,0.00199997,90720.0,90719.0,0.60277502]
[1765288881204,0.00199997,90720.0,90719.0,0.60377502]
[1765288881886,0.00199997,90720.0,90719.0,0.60277502]
[1765288882088,0.00199997,90720.0,90719.0,0.60377502]
[1765288882296,0.00299997,90720.0,90719.0,0.60377502]
[1765288882508,0.00199997,90720.0,90719.0,0.60277502]
[1765288882724,0.00199997,90720.0,90719.0,0.58529502]
[1765288882933,0.00399997,90720.0,90719.0,0.58629502]
[1765288883163,0.00199997,90720.0,90719.0,0.31307502]
[1765288883292,0.00299997,90720.0,90719.0,0.31307502]
[1765288883494,0.00299997,90720.0,90719.0,0.01848]
[1765288883681,0.00199997,90720.0,90719.0,0.01848]
[1765288883879,0.00199997,90720.0,90710.0,0.01102414]
[1765288884216,0.00199997,90720.0,90706.0,0.01102462]
[1765288884217,0.23150459,90711.0,90706.0,0.01102462]
[1765288884381,0.01102389,90712.0,90707.0,0.01748]
[1765288884583,0.01102414,90710.0,90707.0,0.01748]
[1765288884784,0.22048771,90708.0,90707.0,0.01748]
[1765288885050,0.01102426,90709.0,90705.0,0.23151861]
[1765288885356,0.01102487,90704.0,90701.0,0.22050368]
[1765288885662,0.2504,90720.0,90696.0,0.23154143]
[1765288885800,0.01102584,90696.0,90688.0,0.22053415]
[1765288886165,0.23154879,90694.0,90691.0,0.01102645]
[1765288886283,0.0110262,90693.0,90689.0,0.02850669]
[1765288886480,0.22050868,90700.0,90694.0,0.01102608]
[1765288886683,0.23153397,90700.0,90696.0,0.23154132]
[1765288886899,0.23152183,90705.0,90698.0,0.0110256]
[1765288887104,0.23152183,90705.0,90689.0,0.01748]
[1765288887105,0.23151909,90706.0,90703.0,0.23152365]
[1765288887350,0.01102462,90706.0,90703.0,0.01102499]
[1765288888411,0.01102462,90706.0,90703.0,0.23152319]
[1765288888721,0.01102462,90706.0,90701.0,0.01102523]
[1765288888722,0.01102475,90705.0,90701.0,0.01102523]
[1765288888954,0.2315204,90705.0,90702.0,0.01102511]
[1765288889651,0.2365204,90705.0,90702.0,0.23152691]
[1765288889894,0.2315204,90705.0,90702.0,0.23152691]
[1765288890031,0.00109648,90703.0,90702.0,0.01102511]
[1765288890444,0.00109648,90703.0,90701.0,0.23152931]
[1765288890676,0.01102487,90704.0,90701.0,0.23152931]
[1765288891010,0.23150735,90710.0,90706.0,0.22049123]
[1765288891223,0.23151563,90707.0,90704.0,0.2315214]
[1765288891353,0.01025965,90706.0,90704.0,0.23152128]
[1765288892013,0.02128415,90707.0,90704.0,0.23152128]
[1765288892166,0.01025965,90706.0,90704.0,0.23152128]
[1765288892372,0.01025965,90705.0,90704.0,0.23152128]
[1765288892590,0.01025965,90706.0,90704.0,0.23152128]
[1765288892796,0.02128755,90717.0,90709.0,0.01102426]
[1765288893018,0.01026426,90716.0,90714.0,0.23149472]
[1765288893195,0.23073523,90715.0,90712.0,0.01102389]
[1765288893376,0.01026426,90714.0,90713.0,0.22047398]
[1765288893572,0.01026426,90714.0,90712.0,0.24898157]
[1765288893775,0.01026683,90719.0,90717.0,0.01102329]
[1765288893975,0.01026683,90722.0,90718.0,0.22046322]
[1765288894181,0.01026683,90719.0,90717.0,0.01102329]
[1765288894400,0.01026683,90718.0,90717.0,0.23148895]
[1765288895265,0.01102389,90712.0,90710.0,0.01748]
[1765288895582,0.23074804,90711.0,90710.0,0.01748]
[1765288895753,0.01102523,90701.0,90697.0,0.23153836]
[1765288896082,0.01102523,90701.0,90694.0,0.02850608]
[1765288896083,0.01102572,90697.0,90694.0,0.02850608]
[1765288896201,0.01102499,90703.0,90698.0,0.0110256]
[1765288896400,0.01027928,90702.0,90699.0,0.22050815]
[1765288896598,0.23078442,90701.0,90697.0,0.22051356]
[1765288896831,0.0110256,90698.0,90695.0,0.23154478]
[1765288897034,0.0110256,90698.0,90693.0,0.0110262]
[1765288897241,0.01502572,90697.0,90693.0,0.23155012]
[1765288897456,0.23554127,90697.0,90693.0,0.23155012]
[1765288897659,0.22051783,90696.0,90688.0,0.01102681]
[1765288897833,0.22051783,90696.0,90686.0,0.25354222]
[1765288897834,0.22051932,90695.0,90690.0,0.01102657]
[1765288898015,0.01502572,90697.0,90692.0,0.01102633]
[1765288898016,0.004,90697.0,90692.0,0.01102633]
[1765288898224,0.004,90697.0,90694.0,0.23800088]
[1765288898225,0.01502572,90697.0,90694.0,0.23800088]
[1765288898430,0.01102475,90705.0,90699.0,0.01102547]
[1765288898626,0.01102462,90706.0,90699.0,0.01102547]
[1765288898627,0.0213072,90704.0,90701.0,0.01102523]
[1765288898832,0.01028233,90703.0,90702.0,0.2205023]
[1765288899031,0.23078287,90703.0,90699.0,0.01102547]
[1765288899229,0.02130744,90702.0,90696.0,0.01102584]
[1765288899437,0.22051452,90697.0,90694.0,0.02850608]
[1765288899644,0.22051127,90699.0,90696.0,0.22051658]
[1765288899845,0.01028329,90698.0,90697.0,0.22051424]
[1765288900036,0.005,90703.0,90700.0,0.01102535]
[1765288900230,0.01028299,90702.0,90701.0,0.22050473]
[1765288900860,0.01102535,90700.0,90697.0,0.02850572]
[1765288901068,0.01028299,90699.0,90697.0,0.24901962]
[1765288901272,0.23152418,90704.0,90701.0,0.22050243]
[1765288901472,0.0102835,90703.0,90701.0,0.01102523]
[1765288901676,0.01102523,90701.0,90697.0,0.02850572]
[1765288901884,0.0102835,90700.0,90698.0,0.23153531]
[1765288902084,0.004,90700.0,90699.0,0.22050944]
[1765288902287,0.004,90700.0,90699.0,0.22050959]
[1765288902288,0.01028365,90700.0,90699.0,0.22050959]
[1765288903153,0.01028365,90700.0,90698.0,0.23153531]
[1765288903360,0.01028365,90699.0,90698.0,0.23153531]
[1765288903537,0.01028365,90699.0,90697.0,0.01748]
[1765288903738,0.01028365,90698.0,90697.0,0.01748]
[1765288903942,0.23079567,90698.0,90697.0,0.01748]
[1765288904347,0.22051202,90698.0,90697.0,0.01748]
[1765288904706,0.01102742,90683.0,90679.0,0.22055732]
[1765288904909,0.2205558,90680.0,90679.0,0.00011554]
[1765288905342,0.23084004,90680.0,90679.0,0.00011554]
[1765288905998,0.23284004,90680.0,90679.0,0.00011554]
[1765288906346,1.72976804,90680.0,90679.0,0.00011554]
[1765288906912,1.45774004,90680.0,90679.0,0.00011554]
[1765288907658,1.46374004,90680.0,90679.0,0.00011554]
[1765288907846,1.45815503,90680.0,90679.0,0.00011554]
[1765288908047,1.75884959,90680.0,90679.0,0.00011554]
[1765288908251,1.76484959,90680.0,90679.0,0.00011554]
[1765288908561,1.75884959,90680.0,90679.0,0.00011554]
[1765288908754,1.76484959,90680.0,90679.0,0.00011554]
[1765288909579,0.85783123,90680.0,90679.0,0.00011554]
[1765288910408,0.84755147,90680.0,90679.0,0.00011554]
[1765288910622,0.85783225,90680.0,90679.0,0.00011554]
[1765288911443,0.01103265,90640.0,90636.0,0.01103314]
[1765288911681,0.22065586,90639.0,90637.0,0.02851302]
[1765288911798,0.22065586,90639.0,90636.0,0.01114871]
[1765288911799,0.23168863,90639.0,90636.0,0.00011557]
[1765288912009,0.22065864,90638.0,90636.0,0.00011557]
[1765288912431,0.22065872,90638.0,90636.0,0.00011557]
[1765288912654,0.03527981,90680.0,90636.0,0.00011557]
[1765288912968,0.01103192,90646.0,90641.0,0.01103253]
[1765288913183,0.01103216,90644.0,90640.0,0.01103265]
[1765288913387,0.01103216,90644.0,90640.0,0.23168529]
[1765288913594,0.23167334,90645.0,90641.0,0.23168214]
[1765288913735,0.01103204,90645.0,90642.0,0.01103241]
[1765288913941,0.01103216,90644.0,90640.0,0.01103265]
[1765288914141,0.22064618,90643.0,90640.0,0.23168516]
[1765288914341,0.22064858,90642.0,90639.0,0.23168746]
[1765288914539,0.23167749,90644.0,90640.0,0.23168452]
[1765288914971,0.23167937,90643.0,90640.0,0.23168452]
[1765288915172,0.01103277,90639.0,90636.0,0.00011557]
[1765288915380,0.22065861,90638.0,90636.0,0.00011557]
[1765288916668,0.22165861,90638.0,90636.0,0.00011557]
[1765288917075,0.001,90638.0,90636.0,0.00011557]
[1765288917669,0.23168866,90639.0,90636.0,0.00011557]
[1765288918116,0.22265861,90638.0,90636.0,0.00011557]
[1765288918344,0.002,90638.0,90636.0,0.22077785]
[1765288918539,0.22165823,90638.0,90636.0,0.00011557]
[1765288918705,0.22265823,90638.0,90636.0,0.00011557]
[1765288918909,0.22065823,90638.0,90636.0,0.00011557]
[1765288919106,0.22165823,90638.0,90636.0,0.00011557]
[1765288919464,0.22365823,90638.0,90636.0,0.00011557]
[1765288919670,0.22065823,90638.0,90636.0,0.00011557]
[1765288920041,0.22165823,90638.0,90636.0,0.00011557]
[1765288920409,0.001,90638.0,90636.0,0.00011557]
[1765288920617,0.001,90638.0,90636.0,0.2207783]
[1765288920809,0.001,90638.0,90636.0,0.22077769]
[1765288921062,0.002,90638.0,90637.0,0.22066043]
[1765288921292,0.001,90638.0,90637.0,0.22066043]
[1765288921567,0.001,90638.0,90637.0,0.23169345]
[1765288921786,0.003,90638.0,90637.0,0.23169345]
[1765288921986,0.23168589,90640.0,90637.0,0.23169345]
[1765288922270,0.23168589,90640.0,90636.0,0.00011557]
[1765288922271,0.003,90638.0,90636.0,0.00011557]
[1765288922471,0.22066043,90637.0,90636.0,0.00011557]
[1765288924250,2.19140299,90637.0,90636.0,0.00011557]
[1765288924488,2.20163958,90637.0,90636.0,0.00011557]
[1765288924690,2.20263958,90637.0,90636.0,0.00011557]
[1765288924844,1.18263058,90637.0,90636.0,0.00011557]
[1765288925049,1.18363058,90637.0,90636.0,0.00011557]
[1765288925304,1.18163058,90637.0,90636.0,0.00011557]
[1765288925604,1.18363058,90637.0,90636.0,0.00011557]
[1765288925851,1.18763058,90637.0,90636.0,0.00011557]
[1765288926206,1.19163058,90637.0,90636.0,0.00011557]
[1765288927326,1.18763058,90637.0,90636.0,0.00011557]
[1765288927488,1.17163602,90637.0,90636.0,0.00011557]
[1765288927691,0.67494102,90637.0,90636.0,0.00011557]
[1765288927894,0.22866043,90637.0,90636.0,0.00011557]
[1765288928326,0.22566043,90637.0,90636.0,0.00011557]
[1765288928707,0.22066043,90637.0,90636.0,0.00011557]
[1765288928903,0.22366043,90637.0,90636.0,0.00011557]
[1765288929132,0.006,90637.0,90636.0,0.00011557]
[1765288929328,0.006,90637.0,90636.0,0.22239131]
[1765288930262,0.003,90637.0,90636.0,0.22239131]
[1765288930565,0.01103119,90652.0,90649.0,0.01103156]
[1765288930717,0.23165574,90652.0,90649.0,0.01103156]
[1765288930928,0.01103119,90652.0,90646.0,0.22063669]
[1765288931127,0.01103156,90649.0,90647.0,0.22063564]
[1765288931328,0.23166437,90649.0,90646.0,0.23166861]
[1765288931524,0.01103119,90652.0,90646.0,0.01103192]
[1765288931905,0.01603119,90652.0,90649.0,0.23166127]
[1765288932084,0.01025962,90652.0,90651.0,0.22062635]
[1765288932305,0.01026154,90656.0,90654.0,0.01103095]
[1765288932604,0.01026154,90658.0,90655.0,0.01103083]
[1765288932835,0.01026154,90657.0,90656.0,0.22061303]
[1765288932974,0.01026154,90659.0,90656.0,0.23164373]
[1765288933168,0.021292,90658.0,90654.0,0.02851095]
[1765288933389,0.01026154,90657.0,90654.0,0.2491296]
[1765288933572,0.01026154,90656.0,90654.0,0.2491296]
[1765288933772,0.01026154,90655.0,90654.0,0.02851095]
[1765288934015,0.01526154,90657.0,90655.0,0.22061662]
[1765288934218,0.01026154,90656.0,90655.0,0.22061662]
[1765288935023,0.003,90655.0,90654.0,0.01748]
[1765288935349,0.01326154,90655.0,90654.0,0.01748]
[1765288935638,0.01026154,90655.0,90654.0,0.01748]
[1765288936228,0.01026154,90655.0,90654.0,0.23809905]
[1765288936925,0.02129237,90655.0,90651.0,0.01103131]
[1765288937135,0.23165397,90653.0,90652.0,0.01748]
[1765288937371,0.01026154,90653.0,90652.0,0.01748]
[1765288938140,0.002,90655.0,90654.0,0.22061905]
[1765288938318,0.22060227,90661.0,90658.0,0.22060833]
[1765288938521,0.01103058,90657.0,90654.0,0.01103095]
[1765288938840,0.01029644,90656.0,90654.0,0.01103095]
[1765288939075,0.01029644,90655.0,90653.0,0.2316519]
[1765288939204,0.01103058,90657.0,90655.0,0.2206165]
[1765288939404,0.01029742,90656.0,90655.0,0.22061662]
[1765288939614,0.23163412,90661.0,90658.0,0.01103046]
[1765288939826,0.23163412,90661.0,90657.0,0.01103058]
[1765288939827,0.02132764,90660.0,90657.0,0.23163759]
[1765288940062,0.22362149,90653.0,90652.0,0.01748]
[1765288940265,0.23191976,90653.0,90652.0,0.01748]
[1765288940487,0.23091976,90653.0,90652.0,0.01748]
[1765288941327,0.23291976,90653.0,90652.0,0.01748]
[1765288941536,0.23091976,90653.0,90652.0,0.01748]
[1765288941746,0.23191976,90653.0,90652.0,0.01748]
[1765288942591,0.2319194,90653.0,90652.0,0.01748]
[1765288942801,0.2329194,90653.0,90652.0,0.01748]
[1765288943174,0.2309194,90653.0,90652.0,0.01748]
[1765288943443,0.2359194,90653.0,90652.0,0.01748]
[1765288943650,0.2329194,90653.0,90652.0,0.01748]
[1765288943795,0.2309194,90653.0,90652.0,0.01748]
[1765288943985,0.2359194,90653.0,90652.0,0.01748]
[1765288944178,0.002,90653.0,90652.0,0.01748]
[1765288944601,0.22362149,90653.0,90652.0,0.01748]
[1765288944807,0.22562149,90653.0,90652.0,0.01748]
[1765288945836,0.22262149,90653.0,90652.0,0.01748]
[1765288946041,0.22362149,90653.0,90652.0,0.01748]
[1765288946338,0.22262149,90653.0,90652.0,0.01748]
[1765288946920,0.22062149,90653.0,90652.0,0.01748]
[1765288947135,0.22562149,90653.0,90652.0,0.01748]
[1765288947549,0.22062149,90653.0,90652.0,0.01748]
[1765288948075,0.22462149,90653.0,90652.0,0.01748]
[1765288949111,0.01103265,90640.0,90637.0,0.01103302]
[1765288949310,0.01103204,90645.0,90641.0,0.01103253]
[1765288949488,0.2316766,90644.0,90641.0,0.01103253]
[1765288949671,0.23167509,90645.0,90642.0,0.23168051]
[1765288950079,0.01103216,90644.0,90641.0,0.01103253]
[1765288950277,0.22064325,90646.0,90642.0,0.23167899]
[1765288950475,0.01103168,90648.0,90645.0,0.01103204]
[1765288950700,0.01103168,90648.0,90645.0,0.23167178]
[1765288950936,0.01103168,90648.0,90642.0,0.01103241]
[1765288950937,0.23167165,90646.0,90644.0,0.22064319]
[1765288951141,0.22063934,90646.0,90643.0,0.23167636]
[1765288951260,0.22063597,90649.0,90645.0,0.22064096]
[1765288951460,0.23166052,90650.0,90647.0,0.23166787]
[1765288951461,0.23166087,90650.0,90647.0,0.23166787]
[1765288951979,0.22063123,90649.0,90647.0,0.0110318]
[1765288952182,0.23166279,90649.0,90646.0,0.231666]
[1765288953369,0.23166279,90649.0,90643.0,0.22064463]
[1765288953370,0.01103046,90658.0,90656.0,0.22061278]
[1765288953491,0.01103046,90658.0,90654.0,0.22061905]
[1765288953691,0.01103046,90658.0,90655.0,0.22061438]
[1765288953892,0.01103046,90658.0,90650.0,0.01103143]
[1765288953893,0.01103083,90655.0,90652.0,0.22062331]
[1765288954127,0.01103083,90655.0,90652.0,0.22062231]
[1765288954309,0.22062165,90653.0,90650.0,0.23165848]
[1765288954536,0.22062165,90653.0,90651.0,0.01748]
[1765288954720,0.23165001,90654.0,90651.0,0.23810506]
[1765288955038,0.23164718,90656.0,90652.0,0.01103119]
[1765288955250,0.23164718,90656.0,90653.0,0.23165247]
[1765288955974,0.01303095,90654.0,90651.0,0.01748]
[1765288956262,0.22062392,90652.0,90651.0,0.01748]
[1765288956423,0.01103241,90642.0,90637.0,0.01103302]
[1765288956620,0.22065369,90640.0,90639.0,0.01748]
[1765288958509,0.22064574,90644.0,90640.0,0.01103265]
[1765288958707,0.22064871,90642.0,90639.0,0.23813088]
[1765288958908,0.2316784,90643.0,90639.0,0.23813088]
[1765288959264,0.23168105,90642.0,90639.0,0.02851277]
[1765288959468,0.23168085,90642.0,90639.0,0.24916787]
[1765288960295,0.22064355,90644.0,90641.0,0.01103253]
[1765288960497,0.01103131,90651.0,90644.0,0.01103216]
[1765288960795,0.22063672,90647.0,90644.0,0.01103216]
[1765288961137,0.23166852,90647.0,90644.0,0.22064324]
[1765288961336,0.23166852,90647.0,90643.0,0.23167808]
[1765288961540,0.23167055,90646.0,90643.0,0.01103229]
[1765288961963,0.01103204,90645.0,90642.0,0.01103241]
[1765288962238,0.23167535,90645.0,90642.0,0.23168025]
[1765288962442,0.0120318,90647.0,90644.0,0.01103216]
[1765288962443,0.0110318,90647.0,90644.0,0.01103216]
[1765288962646,0.001,90646.0,90645.0,0.01103204]
[1765288963081,0.01103204,90645.0,90639.0,0.02851277]
[1765288963281,0.01103229,90643.0,90639.0,0.02851277]
[1765288963531,0.002,90645.0,90642.0,0.01103241]
[1765288963672,0.002,90645.0,90644.0,0.22064339]
[1765288964838,0.01103156,90649.0,90647.0,0.22063608]
[1765288965186,0.23166286,90649.0,90647.0,0.22063608]
[1765288965781,0.23166286,90649.0,90646.0,0.23167014]
[1765288966276,0.01403156,90649.0,90647.0,0.22063524]
[1765288966626,0.01303156,90649.0,90643.0,0.01103229]
[1765288966826,0.01303156,90649.0,90645.0,0.22063892]
[1765288966827,0.22063365,90648.0,90645.0,0.22063892]
[1765288967035,0.22063684,90647.0,90645.0,0.23167183]
[1765288967331,0.23166864,90647.0,90644.0,0.01103216]
[1765288967533,0.002,90649.0,90648.0,0.22063365]
[1765288967758,0.002,90649.0,90645.0,0.01103204]
[1765288967759,0.23166279,90649.0,90645.0,0.01103204]
[1765288967930,0.23266279,90649.0,90646.0,0.22063761]
[1765288968150,0.23466279,90649.0,90646.0,0.23166953]
[1765288968365,0.23166279,90649.0,90646.0,0.23166953]
[1765288968566,0.23366279,90649.0,90646.0,0.23166953]
[1765288968772,0.0110318,90647.0,90636.0,0.00011557]
[1765288968971,0.22065069,90641.0,90636.0,0.22077765]
[1765288969239,0.22065556,90639.0,90636.0,0.00011557]
[1765288969444,0.22066024,90638.0,90636.0,0.00011557]
[1765288969691,0.22066024,90638.0,90637.0,0.01748]
[1765288970441,0.01103277,90639.0,90637.0,0.01748]
[1765288970812,0.23168985,90639.0,90637.0,0.01748]
[1765288971043,0.220658,90638.0,90637.0,0.01748]
[1765288971550,0.220658,90638.0,90637.0,0.01848]
[1765288971756,0.220658,90638.0,90637.0,0.01748]
[1765288971953,0.23168985,90639.0,90637.0,0.01748]
[1765288972163,0.220658,90638.0,90637.0,0.01848]
[1765288973195,0.23168985,90639.0,90637.0,0.01848]
[1765288973426,0.220658,90638.0,90637.0,0.01848]
[1765288973796,0.23168985,90639.0,90637.0,0.01848]
[1765288974752,0.23167513,90646.0,90643.0,0.22064562]
[1765288974965,0.01103131,90651.0,90644.0,0.22064339]
[1765288975163,0.22062202,90653.0,90649.0,0.23166242]
[1765288975481,0.22062461,90652.0,90649.0,0.23166242]
[1765288975866,0.23165309,90653.0,90650.0,0.22062836]
[1765288976079,0.2206101,90658.0,90655.0,0.01103083]
[1765288976276,0.01103022,90660.0,90656.0,0.22061218]
[1765288976464,0.01103022,90660.0,90657.0,0.22060957]
[1765288976661,0.22059878,90663.0,90660.0,0.01103022]
[1765288976864,0.22059878,90663.0,90659.0,0.01103034]
[1765288976865,0.23162775,90663.0,90659.0,0.01103034]
[1765288977074,0.22060303,90661.0,90658.0,0.01748]
[1765288977274,0.22060303,90661.0,90658.0,0.23808908]
[1765288977517,0.23163021,90662.0,90659.0,0.22060688]
[1765288978093,0.23662815,90663.0,90661.0,0.22060202]
[1765288978298,0.22060471,90660.0,90658.0,0.01748]
[1765288978758,0.22060688,90659.0,90658.0,0.01748]
[1765288979311,0.22060471,90660.0,90658.0,0.01748]
[1765288979601,0.23163238,90661.0,90658.0,0.01748]
[1765288980012,0.22060457,90660.0,90658.0,0.23808881]
[1765288980212,0.22060457,90660.0,90658.0,0.01748]
[1765288980490,0.01502985,90663.0,90661.0,0.22060202]